fUST/lending_fUST_20240218
["ID","MTS","AMOUNT","RATE_DAILY","PERIOD"]
[314367293,1708239046430,-962.03,0.00027397,2]
[314367295,1708239046439,-500.0,0.00027397,2]
[314367297,1708239046449,-500.0,0.00027397,2]
[314367299,1708239046457,-500.0,0.00027397,2]
[314367301,1708239046469,-852.6,0.00027397,2]
[314367303,1708239046478,-500.0,0.00027397,2]
[314367305,1708239046488,-500.0,0.00027397,2]
[314367307,1708239046497,-344.38303373,0.00027397,2]
[314367309,1708239046506,-500.0,0.00027397,2]
[314367311,1708239046515,-61.1685929,0.00027397,2]
[314369431,1708239068605,-125921.16410088,0.00035,30]
[314369432,1708239068637,-2000.0,0.00037871,30]
[314369433,1708239068660,-200.0,0.00038,30]
[314370499,1708239088400,-500000.0,0.00032068,30]
[314370500,1708239091997,-76598.15392051,0.00032068,30]
[314370501,1708239092023,-5427.55875804,0.00032068,30]
[314370502,1708239092048,-1143.92988778,0.00032068,30]
[314370503,1708239092072,-4193.83712827,0.00032068,30]
[314370504,1708239092094,-151.14567388,0.00032068,30]
[314370505,1708239092116,-200000.0,0.00032068,30]
[314370506,1708239092141,-212485.37463152,0.00032068,30]
[314370507,1708239094796,-500000.0,0.00032068,30]
[314370568,1708239332184,4000.0,0.00033,120]
[314370658,1708240232161,-427.90583504,0.00025964,2]
[314370660,1708240232171,-168.768692,0.00025965,2]
[314370662,1708240232180,-168.45859294,0.00026417,3]
[314370664,1708240232190,-7417.65678579,0.00026484,2]
[314370666,1708240232199,-3928.71613348,0.00026485,2]
[314370668,1708240232208,-3108.27733642,0.00026491,2]
[314370670,1708240232217,-187.14629185,0.00026491,2]
[314370672,1708240232227,-5000.0,0.00026512,2]
[314370674,1708240232241,-3676.93642623,0.00026517,2]
[314370676,1708240232250,-155.317256,0.00027297,2]
[314370678,1708240232260,-1153.53,0.00027387,3]
[314370680,1708240232269,-511.28665025,0.00027387,3]
[314371050,1708240238257,-261.53905327,0.00027395,2]
[314371051,1708240238272,-155.03085059,0.00027395,2]
[314371052,1708240238310,-652.47978982,0.00027396,2]
[314371054,1708240238321,-500.0,0.00027397,2]
[314371056,1708240238331,-500.0,0.00027397,2]
[314371057,1708240238340,-500.0,0.00027397,2]
[314371058,1708240238348,-500.0,0.00027397,2]
[314371059,1708240238358,-500.0,0.00027397,2]
[314371060,1708240238367,-503.89435291,0.00027397,2]
[314371061,1708240238377,-500.0,0.00027397,2]
[314371062,1708240238386,-534.04189511,0.00027397,2]
[314371063,1708240238395,-500.0,0.00027397,2]
[314371064,1708240238405,-500.0,0.00027397,2]
[314371065,1708240238414,-500.0,0.00027397,2]
[314371066,1708240238424,-500.0,0.00027397,2]
[314371067,1708240238433,-500.0,0.00027397,2]
[314371068,1708240238442,-500.0,0.00027397,2]
[314371069,1708240238451,-500.0,0.00027397,2]
[314371070,1708240238460,-503.19358489,0.00027397,2]
[314371071,1708240238469,-500.0,0.00027397,2]
[314371072,1708240238478,-500.0,0.00027397,2]
[314371073,1708240238487,-514.17147117,0.00027397,2]
[314371074,1708240238496,-500.0,0.00027397,2]
[314371075,1708240238506,-500.0,0.00027397,2]
[314371076,1708240238515,-500.0,0.00027397,2]
[314371077,1708240238524,-502.62782781,0.00027397,2]
[314371078,1708240238534,-504.30172405,0.00027397,2]
[314371079,1708240238543,-500.0,0.00027397,2]
[314371080,1708240238552,-500.0,0.00027397,2]
[314371081,1708240238561,-500.0,0.00027397,2]
[314371082,1708240238570,-500.0,0.00027397,2]
[314371083,1708240238579,-500.0,0.00027397,2]
[314371084,1708240238588,-500.0,0.00027397,2]
[314371085,1708240238597,-332.94825931,0.00027397,2]
[314371086,1708240238606,-480.011166,0.00027397,2]
[314371087,1708240238614,-500.0,0.00027397,2]
[314371088,1708240238624,-190.02989101,0.00027397,2]
[314371089,1708240238634,-500.0,0.00027397,2]
[314371090,1708240238643,-500.0,0.00027397,2]
[314371091,1708240238652,-503.19452163,0.00027397,2]
[314371092,1708240238661,-500.0,0.00027397,2]
[314371093,1708240238670,-201.23905066,0.00027397,2]
[314371094,1708240238680,-500.0,0.00027397,2]
[314371095,1708240238689,-559.04491092,0.00027397,2]
[314371096,1708240238698,-243.06579474,0.00027397,2]
[314371097,1708240238707,-500.0,0.00027397,2]
[314371098,1708240238716,-500.0,0.00027397,2]
[314371099,1708240238726,-500.0,0.00027397,2]
[314371100,1708240238735,-500.0,0.00027397,2]
[314371101,1708240238743,-155.0,0.00027397,2]
[314371102,1708240238753,-500.0,0.00027397,2]
[314371103,1708240238762,-378.5359668,0.00027397,2]
[314371104,1708240238771,-500.0,0.00027397,2]
[314371105,1708240238780,-500.0,0.00027397,2]
[314371106,1708240238789,-500.0,0.00027397,2]
[314371107,1708240238798,-500.0,0.00027397,2]
[314371108,1708240238807,-500.0,0.00027397,2]
[314371109,1708240238817,-517.74321469,0.00027397,2]
[314371110,1708240238826,-500.0,0.00027397,2]
[314371111,1708240238835,-500.0,0.00027397,2]
[314371112,1708240238844,-500.0,0.00027397,2]
[314371113,1708240238853,-500.0,0.00027397,2]
[314371114,1708240238862,-506.80406058,0.00027397,2]
[314371115,1708240238870,-500.0,0.00027397,2]
[314371116,1708240238879,-500.0,0.00027397,2]
[314371117,1708240238888,-500.0,0.00027397,2]
[314371118,1708240238897,-500.0,0.00027397,2]
[314371119,1708240238906,-500.0,0.00027397,2]
[314371120,1708240238915,-500.0,0.00027397,2]
[314371121,1708240238923,-500.0,0.00027397,2]
[314371122,1708240238932,-500.0,0.00027397,2]
[314371123,1708240238941,-500.0,0.00027397,2]
[314371124,1708240238950,-500.0,0.00027397,2]
[314371125,1708240238959,-500.0,0.00027397,2]
[314371126,1708240238968,-500.0,0.00027397,2]
[314371127,1708240238977,-500.0,0.00027397,2]
[314371128,1708240238986,-500.0,0.00027397,2]
[314371129,1708240238995,-500.0,0.00027397,2]
[314371130,1708240239003,-500.0,0.00027397,2]
[314371131,1708240239013,-500.0,0.00027397,2]
[314371132,1708240239023,-370.98777162,0.00027397,2]
[314371133,1708240239033,-500.0,0.00027397,2]
[314371134,1708240239042,-500.0,0.00027397,2]
[314371135,1708240239053,-500.0,0.00027397,2]
[314371136,1708240239063,-574.86,0.00027397,2]
[314371137,1708240239072,-500.0,0.00027397,2]
[314371138,1708240239081,-500.0,0.00027397,2]
[314371139,1708240239090,-500.0,0.00027397,2]
[314371140,1708240239099,-455.52626437,0.00027397,2]
[314371141,1708240239108,-500.0,0.00027397,2]
[314371142,1708240239117,-500.0,0.00027397,2]
[314371143,1708240239126,-500.0,0.00027397,2]
[314371144,1708240239135,-500.0,0.00027397,2]
[314371145,1708240239144,-500.0,0.00027397,2]
[314371146,1708240239154,-1000.0,0.00027397,2]
[314371147,1708240239163,-502.27713217,0.00027397,2]
[314371148,1708240239172,-500.0,0.00027397,2]
[314371149,1708240239181,-500.0,0.00027397,2]
[314371150,1708240239190,-500.0,0.00027397,2]
[314371151,1708240239200,-500.0,0.00027397,2]
[314371152,1708240239209,-500.0,0.00027397,2]
[314371153,1708240239218,-506.08199157,0.00027397,2]
[314371154,1708240239228,-367.17290942,0.00027397,2]
[314371155,1708240239239,-500.0,0.00027397,2]
[314371156,1708240239250,-600.01697442,0.00027397,2]
[314371157,1708240239259,-500.0,0.00027397,2]
[314371158,1708240239269,-500.0,0.00027397,2]
[314371159,1708240239278,-500.0,0.00027397,2]
[314371160,1708240239289,-500.0,0.00027397,2]
[314371161,1708240239299,-486.24233895,0.00027397,2]
[314371162,1708240239308,-500.0,0.00027397,2]
[314371163,1708240239318,-500.0,0.00027397,2]
[314371164,1708240239327,-500.0,0.00027397,2]
[314371165,1708240239338,-500.0,0.00027397,2]
[314371166,1708240239428,-500.0,0.00027397,2]
[314371167,1708240239438,-500.0,0.00027397,2]
[314371168,1708240239447,-500.0,0.00027397,2]
[314371169,1708240239456,-500.0,0.00027397,2]
[314371170,1708240239465,-500.0,0.00027397,2]
[314371171,1708240239474,-500.0,0.00027397,2]
[314371172,1708240239483,-500.0,0.00027397,2]
[314371173,1708240239493,-500.0,0.00027397,2]
[314371174,1708240239502,-500.0,0.00027397,2]
[314371175,1708240239511,-241.62581266,0.00027397,2]
[314371176,1708240239519,-500.0,0.00027397,2]
[314371177,1708240239528,-500.0,0.00027397,2]
[314371178,1708240239538,-500.0,0.00027397,2]
[314371179,1708240239546,-500.0,0.00027397,2]
[314371180,1708240239555,-500.0,0.00027397,2]
[314371181,1708240239564,-866.08,0.00027397,2]
[314371182,1708240239574,-698.57,0.00027397,2]
[314371183,1708240239582,-500.0,0.00027397,2]
[314371184,1708240239591,-500.0,0.00027397,2]
[314371185,1708240239600,-500.0,0.00027397,2]
[314371186,1708240239609,-500.0,0.00027397,2]
[314371187,1708240239618,-1000.0,0.00027397,2]
[314371188,1708240239627,-500.0,0.00027397,2]
[314371189,1708240239636,-500.0,0.00027397,2]
[314371190,1708240239645,-500.0,0.00027397,2]
[314371191,1708240239654,-500.0,0.00027397,2]
[314371192,1708240239663,-500.0,0.00027397,2]
[314371193,1708240239672,-505.05894013,0.00027397,2]
[314371194,1708240239681,-565.4,0.00027397,2]
[314371195,1708240239690,-501.46624932,0.00027397,2]
[314371196,1708240239699,-500.0,0.00027397,2]
[314371197,1708240239708,-504.42826121,0.00027397,2]
[314371198,1708240239716,-623.42,0.00027397,2]
[314371199,1708240239726,-468.51717466,0.00027397,2]
[314371200,1708240239735,-500.0,0.00027397,2]
[314371201,1708240239744,-500.0,0.00027397,2]
[314371202,1708240239753,-500.0,0.00027397,2]
[314371203,1708240239762,-500.0,0.00027397,2]
[314371204,1708240239771,-4413.52,0.00027397,2]
[314371205,1708240239780,-500.0,0.00027397,2]
[314371206,1708240239789,-500.0,0.00027397,2]
[314371207,1708240239798,-500.0,0.00027397,2]
[314371208,1708240239807,-500.0,0.00027397,2]
[314371209,1708240239815,-501.95411402,0.00027397,2]
[314371210,1708240239824,-500.0,0.00027397,2]
[314371211,1708240239833,-500.0,0.00027397,2]
[314371212,1708240239843,-500.0,0.00027397,2]
[314371213,1708240239852,-5122.07,0.00027397,2]
[314371214,1708240239861,-4106.55,0.00027397,2]
[314371215,1708240239870,-848.6,0.00027397,2]
[314371216,1708240239879,-500.0,0.00027397,2]
[314371217,1708240239888,-733.54,0.00027397,2]
[314371218,1708240239897,-500.0,0.00027397,2]
[314371219,1708240239906,-500.0,0.00027397,2]
[314371220,1708240239915,-500.0,0.00027397,2]
[314371221,1708240239924,-500.0,0.00027397,2]
[314371222,1708240239933,-500.0,0.00027397,2]
[314371223,1708240239943,-500.0,0.00027397,2]
[314371224,1708240239951,-500.0,0.00027397,2]
[314371225,1708240239960,-500.0,0.00027397,2]
[314371226,1708240239969,-500.0,0.00027397,2]
[314371227,1708240239978,-500.0,0.00027397,2]
[314371228,1708240239987,-500.0,0.00027397,2]
[314371229,1708240239996,-585.1,0.00027397,2]
[314371230,1708240240005,-500.0,0.00027397,2]
[314371231,1708240240014,-500.0,0.00027397,2]
[314371232,1708240240024,-506.36604437,0.00027397,2]
[314371233,1708240240033,-557.30126923,0.00027397,2]
[314371234,1708240240042,-500.0,0.00027397,2]
[314371235,1708240240051,-500.0,0.00027397,2]
[314371236,1708240240060,-500.0,0.00027397,2]
[314371237,1708240240069,-500.0,0.00027397,2]
[314371238,1708240240078,-762.98,0.00027397,2]
[314371239,1708240240087,-540.63992941,0.00027397,2]
[314371240,1708240240096,-500.0,0.00027397,2]
[314371241,1708240240105,-500.0,0.00027397,2]
[314371242,1708240240114,-500.0,0.00027397,2]
[314371243,1708240240123,-500.0,0.00027397,2]
[314371244,1708240240132,-500.0,0.00027397,2]
[314371245,1708240240141,-500.0,0.00027397,2]
[314371246,1708240240150,-509.42747849,0.00027397,2]
[314371247,1708240240159,-3935.84,0.00027397,2]
[314371248,1708240240168,-500.0,0.00027397,2]
[314371249,1708240240177,-820.22,0.00027397,2]
[314371250,1708240240187,-852.47,0.00027397,2]
[314371251,1708240240195,-500.0,0.00027397,2]
[314371252,1708240240204,-500.0,0.00027397,2]
[314371253,1708240240217,-5720.71,0.00027397,2]
[314371254,1708240240231,-2189.04,0.00027397,2]
[314371255,1708240240247,-500.0,0.00027397,2]
[314371256,1708240240261,-500.0,0.00027397,2]
[314371257,1708240240275,-500.0,0.00027397,2]
[314371258,1708240240285,-500.0,0.00027397,2]
[314371259,1708240240299,-500.0,0.00027397,2]
[314371260,1708240240312,-500.0,0.00027397,2]
[314371261,1708240240324,-3281.84,0.00027397,2]
[314371263,1708240240338,-500.0,0.00027397,2]
[314371266,1708240240351,-500.0,0.00027397,2]
[314371268,1708240240364,-500.0,0.00027397,2]
[314371269,1708240240376,-390.0,0.00027397,2]
[314371270,1708240240386,-504.21440813,0.00027397,2]
[314371271,1708240240398,-500.0,0.00027397,2]
[314371272,1708240240411,-993.72,0.00027397,2]
[314371273,1708240240423,-401.0339557,0.000274,2]
[314371274,1708240240435,-306.0,0.00027452,2]
[314371275,1708240240446,-309.7117813,0.00027452,2]
[314371276,1708240240459,-500.0,0.00027464,2]
[314371277,1708240240472,-595.42977568,0.00027464,2]
[314371278,1708240240482,-500.0,0.00027464,2]
[314371279,1708240240493,-477.99638509,0.00027464,2]
[314371280,1708240240506,-500.0,0.00027464,2]
[314371281,1708240240519,-500.0,0.00027464,2]
[314371282,1708240240530,-197.84170283,0.00027464,2]
[314371283,1708240240543,-182.29787003,0.00027465,2]
[314371284,1708240240555,-198.4236583,0.00027465,2]
[314371285,1708240240566,-185.11273124,0.00027465,2]
[314371286,1708240240578,-475.76646381,0.00027465,2]
[314371288,1708240240590,-492.64932687,0.00027465,2]
[314371290,1708240240603,-1464.2353465,0.00027465,2]
[314371291,1708240240614,-1000.0,0.00027465,7]
[314371292,1708240240627,-2037.88981411,0.00027465,2]
[314371293,1708240240640,-4832.98611384,0.00027465,2]
[314371294,1708240240652,-216.5790776,0.000275,2]
[314371295,1708240240662,-500.0,0.0002757,2]
[314371296,1708240240672,-20870.34767728,0.00027571,2]
[314371302,1708240241386,-2597.2,0.00027571,2]
[314371303,1708240241442,-10471.30742225,0.00027571,2]
[314371304,1708240241453,-465.01399377,0.0002767,2]
[314371305,1708240241464,-500.0,0.00027671,2]
[314371306,1708240241475,-500.0,0.00027671,2]
[314371307,1708240241487,-500.0,0.00027671,2]
[314371308,1708240241498,-500.0,0.00027671,2]
[314371309,1708240241509,-500.0,0.00027671,2]
[314371310,1708240241521,-500.0,0.00027671,2]
[314371311,1708240241532,-500.0,0.00027671,2]
[314371312,1708240241544,-500.0,0.00027671,2]
[314371313,1708240241555,-500.0,0.00027671,2]
[314371314,1708240241565,-500.0,0.00027671,2]
[314371315,1708240241576,-500.0,0.00027671,2]
[314371316,1708240241587,-500.0,0.00027671,2]
[314371317,1708240241597,-500.0,0.00027671,2]
[314371318,1708240241606,-500.0,0.00027671,2]
[314371319,1708240241616,-507.26136715,0.00027671,2]
[314371320,1708240241625,-254.83079031,0.00027671,2]
[314371321,1708240241635,-500.0,0.00027671,2]
[314371322,1708240241645,-500.0,0.00027671,2]
[314371323,1708240241654,-500.0,0.00027671,2]
[314371324,1708240241663,-516.22443742,0.00027671,2]
[314371325,1708240241672,-504.17341533,0.00027671,2]
[314371326,1708240241788,-504.28661349,0.00027671,2]
[314371327,1708240241803,-500.0,0.00027671,2]
[314371328,1708240241812,-500.0,0.00027671,2]
[314371329,1708240241822,-500.0,0.00027671,2]
[314371330,1708240241831,-500.0,0.00027671,2]
[314371331,1708240241840,-500.0,0.00027671,2]
[314371332,1708240241849,-500.0,0.00027671,2]
[314371333,1708240241857,-500.0,0.00027671,2]
[314371334,1708240241866,-172.36693185,0.00027671,2]
[314371335,1708240241875,-500.0,0.00027671,2]
[314371336,1708240241884,-500.0,0.00027671,2]
[314371337,1708240241893,-500.0,0.00027671,2]
[314371338,1708240241901,-500.0,0.00027671,2]
[314371339,1708240241910,-500.0,0.00027671,2]
[314371340,1708240241919,-500.0,0.00027671,2]
[314371341,1708240241929,-500.0,0.00027671,2]
[314371342,1708240241938,-500.0,0.00027671,2]
[314371343,1708240241948,-500.0,0.00027671,2]
[314371344,1708240241957,-500.0,0.00027671,2]
[314371345,1708240241966,-578.5150455,0.00027671,2]
[314371346,1708240241975,-574.86,0.00027671,2]
[314371347,1708240241984,-500.0,0.00027671,2]
[314371348,1708240241993,-500.0,0.00027671,2]
[314371349,1708240242002,-500.0,0.00027671,2]
[314371350,1708240242011,-500.0,0.00027671,2]
[314371351,1708240242022,-528.81669082,0.00027671,2]
[314371352,1708240242031,-500.0,0.00027671,2]
[314371353,1708240242040,-500.0,0.00027671,2]
[314371354,1708240242050,-500.0,0.00027671,2]
[314371355,1708240242059,-500.0,0.00027671,2]
[314371356,1708240242068,-500.0,0.00027671,2]
[314371357,1708240242077,-500.0,0.00027671,2]
[314371358,1708240242086,-500.0,0.00027671,2]
[314371359,1708240242096,-500.0,0.00027671,2]
[314371360,1708240242105,-500.0,0.00027671,2]
[314371361,1708240242114,-500.0,0.00027671,2]
[314371362,1708240242123,-500.0,0.00027671,2]
[314371363,1708240242132,-500.0,0.00027671,2]
[314371364,1708240242141,-500.0,0.00027671,2]
[314371365,1708240242151,-500.0,0.00027671,2]
[314371366,1708240242160,-526.51649215,0.00027671,2]
[314371367,1708240242169,-505.06050366,0.00027671,2]
[314371368,1708240242178,-500.0,0.00027671,2]
[314371369,1708240242187,-618.67348345,0.00027671,2]
[314371370,1708240242196,-500.0,0.00027671,2]
[314371371,1708240242206,-500.0,0.00027671,2]
[314371372,1708240242225,-500.0,0.00027671,2]
[314371373,1708240242240,-500.0,0.00027671,2]
[314371374,1708240242251,-500.0,0.00027671,2]
[314371375,1708240242262,-500.0,0.00027671,2]
[314371376,1708240242272,-500.0,0.00027671,2]
[314371377,1708240242283,-500.0,0.00027671,2]
[314371378,1708240242294,-500.0,0.00027671,2]
[314371379,1708240242304,-500.0,0.00027671,2]
[314371380,1708240242315,-866.08,0.00027671,2]
[314371381,1708240242325,-698.57,0.00027671,2]
[314371382,1708240242335,-500.0,0.00027671,2]
[314371383,1708240242345,-500.0,0.00027671,2]
[314371384,1708240242355,-500.0,0.00027671,2]
[314371385,1708240242365,-1000.0,0.00027671,2]
[314371386,1708240242375,-500.0,0.00027671,2]
[314371387,1708240242385,-500.0,0.00027671,2]
[314371388,1708240242395,-500.0,0.00027671,2]
[314371389,1708240242405,-500.0,0.00027671,2]
[314371390,1708240242415,-565.4,0.00027671,2]
[314371391,1708240242425,-504.86893184,0.00027671,2]
[314371392,1708240242435,-623.42,0.00027671,2]
[314371393,1708240242445,-500.0,0.00027671,2]
[314371394,1708240242455,-500.0,0.00027671,2]
[314371395,1708240242465,-500.0,0.00027671,2]
[314371396,1708240242475,-4413.52,0.00027671,2]
[314371397,1708240242485,-500.0,0.00027671,2]
[314371398,1708240242495,-268.12799793,0.00027671,2]
[314371399,1708240242504,-500.0,0.00027671,2]
[314371400,1708240242514,-500.0,0.00027671,2]
[314371401,1708240242525,-500.0,0.00027671,2]
[314371402,1708240242534,-5122.07,0.00027671,2]
[314371403,1708240242544,-4106.55,0.00027671,2]
[314371404,1708240242554,-848.6,0.00027671,2]
[314371405,1708240242563,-733.54,0.00027671,2]
[314371406,1708240242573,-512.2438589,0.00027671,2]
[314371407,1708240242583,-149.76064718,0.00027671,2]
[314371408,1708240242598,-301.82204897,0.00027671,2]
[314371417,1708240243128,-48.41730385,0.00027671,2]
[314371418,1708240243137,-500.0,0.00027671,2]
[314371419,1708240243147,-585.1,0.00027671,2]
[314371420,1708240243157,-500.0,0.00027671,2]
[314371421,1708240243166,-439.58456191,0.00027671,2]
[314371422,1708240243194,-0.01148297,0.00027671,2]
[314371423,1708240243232,-119.22793602,0.00027671,2]
[314371424,1708240243246,-500.0,0.00027671,2]
[314371425,1708240243256,-260.72666458,0.00027671,2]
[314371430,1708241346112,-1800.0,0.00021163,2]
[314371431,1708241392206,1289.31233101,0.00021163,2]
[314371465,1708241434677,-461.36192836,0.00019063,2]
[314371467,1708241434687,-1200.0,0.00021163,2]
[314371469,1708241434698,-3993.65867715,0.00021163,2]
[314371471,1708241434709,-19760.30493184,0.00021163,2]
[314371473,1708241434718,-427.90583504,0.00022,2]
[314371475,1708241434727,-5423.93,0.00024039,3]
[314371477,1708241434736,-971.29657009,0.00024048,2]
[314371479,1708241434747,-30658.19987794,0.00024049,2]
[314371827,1708241438356,-5937.37,0.00024039,3]
[314371829,1708241438366,-3946.36308841,0.00024049,2]
[314371835,1708241438415,-4894.91241629,0.00024049,2]
[314371838,1708241438428,-5502.74440674,0.00024049,2]
[314371841,1708241438474,-4997.78021062,0.00024049,2]
[314371843,1708241438484,-461.36192836,0.00024063,2]
[314371845,1708241438493,-173.25047373,0.00024782,2]
[314371847,1708241438503,-1004.27641323,0.00024882,2]
[314371849,1708241438513,-435.34679492,0.00024999,2]
[314371850,1708241438523,-58155.66806403,0.00025,2]
[314371852,1708241438532,-7417.65678579,0.00025,2]
[314371854,1708241438543,-11498.5766716,0.00025238,2]
[314371856,1708241438552,-170.38,0.00026458,3]
[314371858,1708241438562,-511.18,0.00026458,3]
[314371859,1708241438571,-342.69133801,0.00026491,2]
[314371861,1708241438582,-54427.38549853,0.00026491,2]
[314371862,1708241438590,-5000.0,0.00026491,2]
[314371863,1708241438600,-2585.30081118,0.00026491,2]
[314371864,1708241438609,-5000.0,0.00026491,2]
[314371865,1708241438618,-153.0,0.00026712,2]
[314371866,1708241438639,-153.0,0.00026712,2]
[314371867,1708241438651,-153.0,0.00026712,2]
[314371868,1708241438661,-153.0,0.00026712,2]
[314371869,1708241438671,-153.0,0.00027123,2]
[314371870,1708241438680,-153.0,0.00027123,2]
[314371871,1708241438831,-153.0,0.00027123,2]
[314371872,1708241438841,-153.0,0.00027123,2]
[314371873,1708241438850,-153.0,0.00027123,2]
[314371874,1708241438860,-153.0,0.00027123,2]
[314371875,1708241438869,-153.0,0.00027123,2]
[314371876,1708241438878,-306.0,0.00027123,2]
[314371877,1708241438887,-153.0,0.000273,2]
[314371878,1708241438897,-405.92914822,0.00027397,2]
[314371879,1708241438906,-551.55464271,0.00027397,2]
[314371880,1708241438915,-180.50850121,0.00027397,2]
[314371881,1708241438925,-500.0,0.00027397,2]
[314371882,1708241438934,-500.0,0.00027397,2]
[314371883,1708241438943,-500.0,0.00027397,2]
[314371884,1708241438952,-500.0,0.00027397,2]
[314371885,1708241438961,-500.0,0.00027397,2]
[314371886,1708241438970,-500.0,0.00027397,2]
[314371887,1708241438980,-500.0,0.00027397,2]
[314371888,1708241438989,-500.0,0.00027397,2]
[314371889,1708241438999,-500.0,0.00027397,2]
[314371890,1708241439008,-500.0,0.00027397,2]
[314371891,1708241439017,-583.68019355,0.00027397,2]
[314371892,1708241439027,-500.0,0.00027397,2]
[314371893,1708241439036,-562.38075067,0.00027397,2]
[314371894,1708241439045,-265.13186606,0.00027397,2]
[314371895,1708241439054,-500.0,0.00027397,2]
[314371896,1708241439063,-500.0,0.00027397,2]
[314371897,1708241439073,-155.0,0.00027397,2]
[314371898,1708241439082,-500.0,0.00027397,2]
[314371899,1708241439091,-500.0,0.00027397,2]
[314371900,1708241439100,-500.0,0.00027397,2]
[314371901,1708241439109,-504.67487428,0.00027397,2]
[314371903,1708241439118,-500.0,0.00027397,2]
[314371904,1708241439127,-500.0,0.00027397,2]
[314371906,1708241439136,-526.95,0.00027397,2]
[314371908,1708241439146,-500.0,0.00027397,2]
[314371910,1708241439155,-249.34461434,0.00027397,2]
[314371912,1708241439163,-500.0,0.00027397,2]
[314371914,1708241439173,-500.0,0.00027397,2]
[314371916,1708241439181,-500.0,0.00027397,2]
[314371918,1708241439190,-500.0,0.00027397,2]
[314371920,1708241439199,-534.11514124,0.00027397,2]
[314371921,1708241439208,-500.0,0.00027397,2]
[314371923,1708241439217,-500.0,0.00027397,2]
[314371925,1708241439226,-500.0,0.00027397,2]
[314371927,1708241439235,-640.36,0.00027397,2]
[314371928,1708241439244,-793.9,0.00027397,2]
[314371930,1708241439253,-500.0,0.00027397,2]
[314371932,1708241439262,-500.0,0.00027397,2]
[314371934,1708241439271,-500.0,0.00027397,2]
[314371935,1708241439280,-500.0,0.00027397,2]
[314371937,1708241439289,-571.46,0.00027397,2]
[314371939,1708241439298,-500.0,0.00027397,2]
[314371941,1708241439308,-500.0,0.00027397,2]
[314371943,1708241439316,-518.28,0.00027397,2]
[314371946,1708241439326,-500.0,0.00027397,2]
[314371947,1708241439335,-4695.23,0.00027397,2]
[314371950,1708241439345,-777.88,0.00027397,2]
[314371952,1708241439354,-672.42,0.00027397,2]
[314371954,1708241439363,-4045.73,0.00027397,2]
[314371955,1708241439372,-446.57312521,0.00027397,2]
[314371958,1708241439381,-500.0,0.00027397,2]
[314371960,1708241439393,-3764.34,0.00027397,2]
[314371962,1708241439401,-500.0,0.00027397,2]
[314371964,1708241439410,-500.0,0.00027397,2]
[314371966,1708241439422,-500.0,0.00027397,2]
[314371968,1708241439431,-500.0,0.00027397,2]
[314371969,1708241439440,-536.34,0.00027397,2]
[314371971,1708241439450,-767.6,0.00027397,2]
[314371973,1708241439458,-786.04,0.00027397,2]
[314371974,1708241439467,-394.90630849,0.00027397,2]
[314371975,1708241439476,-500.0,0.00027397,2]
[314371976,1708241439486,-500.0,0.00027397,2]
[314371977,1708241439495,-500.0,0.00027397,2]
[314371978,1708241439505,-816.95,0.00027397,2]
[314371979,1708241439514,-3771.85,0.00027397,2]